[Event "Late-Titled-Tuesday-Blitz-September-19-2023"]
[Site "Chess.com"]
[Date "2023.09.19"]
[Round "9"]
[White "floplover"]
[Black "Mariia89"]
[Result "1-0"]
[WhiteElo "2329"]
[BlackElo "2056"]
[TimeControl "180+1"]
[EndTime "15:45:45 PDT"]
[Termination "floplover won by checkmate"]

1. e4 {[%clk 0:02:56.7]} 1... c6 {[%clk 0:02:58.9]} 2. Nf3 {[%clk 0:02:43]} 2...
d5 {[%clk 0:02:59.5]} 3. d3 {[%clk 0:02:43.3]} 3... dxe4 {[%clk 0:02:56.3]} 4.
dxe4 {[%clk 0:02:44.2]} 4... Qxd1+ {[%clk 0:02:55.9]} 5. Kxd1 {[%clk 0:02:45.1]}
5... Bg4 {[%clk 0:02:55.8]} 6. Nd2 {[%clk 0:02:44.1]} 6... Nd7 {[%clk
0:02:53.9]} 7. c3 {[%clk 0:02:42.3]} 7... e5 {[%clk 0:02:52.9]} 8. Be2 {[%clk
0:02:33.5]} 8... Bc5 {[%clk 0:02:48]} 9. Rf1 {[%clk 0:02:32.5]} 9... Ngf6 {[%clk
0:02:43.7]} 10. Kc2 {[%clk 0:02:31.1]} 10... O-O {[%clk 0:02:34.8]} 11. h3
{[%clk 0:02:27.3]} 11... Bh5 {[%clk 0:02:29.8]} 12. Bd3 {[%clk 0:02:23.6]} 12...
Rad8 {[%clk 0:02:20.9]} 13. b4 {[%clk 0:02:15.5]} 13... Bb6 {[%clk 0:02:18]} 14.
Nc4 {[%clk 0:02:14.7]} 14... Rfe8 {[%clk 0:02:16.2]} 15. Nd6 {[%clk 0:02:00.6]}
15... Rf8 {[%clk 0:01:59.5]} 16. Nxb7 {[%clk 0:01:59.1]} 16... Rb8 {[%clk
0:01:59.9]} 17. Nd6 {[%clk 0:01:59.5]} 17... Rfd8 {[%clk 0:01:36.9]} 18. Bg5
{[%clk 0:01:43.4]} 18... Bxf3 {[%clk 0:01:27.1]} 19. gxf3 {[%clk 0:01:42.9]}
19... h6 {[%clk 0:01:26.8]} 20. Be3 {[%clk 0:01:37.1]} 20... Nf8 {[%clk
0:01:02.7]} 21. Nf5 {[%clk 0:01:33.6]} 21... Kh7 {[%clk 0:00:43.2]} 22. Bc4
{[%clk 0:01:25.2]} 22... Rd7 {[%clk 0:00:41.1]} 23. Rad1 {[%clk 0:01:14.1]}
23... Bxe3 {[%clk 0:00:27.7]} 24. fxe3 {[%clk 0:01:12.6]} 24... Rbd8 {[%clk
0:00:19.1]} 25. Rxd7 {[%clk 0:01:11.4]} 25... Rxd7 {[%clk 0:00:20]} 26. Rd1
{[%clk 0:01:07.9]} 26... g6 {[%clk 0:00:16.5]} 27. Rxd7 {[%clk 0:01:04.1]} 27...
N6xd7 {[%clk 0:00:17]} 28. Ne7 {[%clk 0:01:00.8]} 28... f5 {[%clk 0:00:08.1]}
29. exf5 {[%clk 0:00:58]} 29... gxf5 {[%clk 0:00:06.8]} 30. Nxf5 {[%clk
0:00:57.4]} 30... c5 {[%clk 0:00:07.7]} 31. b5 {[%clk 0:00:56.4]} 31... Kg6
{[%clk 0:00:05.3]} 32. Nd6 {[%clk 0:00:53.7]} 32... Kh5 {[%clk 0:00:02.9]} 33.
Nf5 {[%clk 0:00:49.2]} 33... Kg5 {[%clk 0:00:01.5]} 34. Bd3 {[%clk 0:00:31.7]}
34... h5 {[%clk 0:00:01.7]} 35. a4 {[%clk 0:00:28.5]} 35... Nb6 {[%clk
0:00:01.6]} 36. a5 {[%clk 0:00:27.4]} 36... Nd5 {[%clk 0:00:02.4]} 37. Kd2
{[%clk 0:00:26.3]} 37... Nf6 {[%clk 0:00:02.4]} 38. c4 {[%clk 0:00:24.8]} 38...
h4 {[%clk 0:00:02.9]} 39. Be4 {[%clk 0:00:21.8]} 39... Ne6 {[%clk 0:00:02.1]}
40. Kd3 {[%clk 0:00:20.4]} 40... Nh5 {[%clk 0:00:01.5]} 41. b6 {[%clk
0:00:20.3]} 41... axb6 {[%clk 0:00:01.6]} 42. axb6 {[%clk 0:00:20.5]} 42... Nd8
{[%clk 0:00:01.9]} 43. Ne7 {[%clk 0:00:17.9]} 43... Ng3 {[%clk 0:00:01.6]} 44.
b7 {[%clk 0:00:17.4]} 44... Nxb7 {[%clk 0:00:02.1]} 45. Bxb7 {[%clk 0:00:17.6]}
45... Nf1 {[%clk 0:00:02.2]} 46. Bc8 {[%clk 0:00:16.5]} 46... Nh2 {[%clk
0:00:01.8]} 47. Nc6 {[%clk 0:00:16.4]} 47... Nxf3 {[%clk 0:00:01.9]} 48. Ke2
{[%clk 0:00:15.8]} 48... Ng1+ {[%clk 0:00:01.7]} 49. Kf2 {[%clk 0:00:15.4]}
49... Nxh3+ {[%clk 0:00:01.9]} 50. Bxh3 {[%clk 0:00:14.8]} 50... e4 {[%clk
0:00:02.3]} 51. Bg2 {[%clk 0:00:12.8]} 51... Kf6 {[%clk 0:00:03.2]} 52. Bxe4
{[%clk 0:00:12]} 52... h3 {[%clk 0:00:04.1]} 53. Bh1 {[%clk 0:00:11.9]} 53...
Ke6 {[%clk 0:00:04.9]} 54. Na5 {[%clk 0:00:12.3]} 54... Kd6 {[%clk 0:00:05.8]}
55. Nb3 {[%clk 0:00:13]} 55... Kc7 {[%clk 0:00:06]} 56. Kg3 {[%clk 0:00:13.2]}
56... h2 {[%clk 0:00:06.9]} 57. Kh3 {[%clk 0:00:14.1]} 57... Kd6 {[%clk
0:00:06.8]} 58. Kxh2 {[%clk 0:00:15]} 58... Ke5 {[%clk 0:00:07.1]} 59. Kg3
{[%clk 0:00:15.9]} 59... Kd6 {[%clk 0:00:07.7]} 60. Kf4 {[%clk 0:00:16.4]} 60...
Ke6 {[%clk 0:00:08]} 61. e4 {[%clk 0:00:15.9]} 61... Ke7 {[%clk 0:00:08.7]} 62.
e5 {[%clk 0:00:16.5]} 62... Ke6 {[%clk 0:00:09.2]} 63. Bd5+ {[%clk 0:00:15.3]}
63... Ke7 {[%clk 0:00:10.1]} 64. Kf5 {[%clk 0:00:15.9]} 64... Ke8 {[%clk
0:00:10.6]} 65. e6 {[%clk 0:00:16.7]} 65... Ke7 {[%clk 0:00:10.9]} 66. Ke5
{[%clk 0:00:16.7]} 66... Ke8 {[%clk 0:00:11.8]} 67. Kf6 {[%clk 0:00:16.4]} 67...
Kd8 {[%clk 0:00:12.7]} 68. e7+ {[%clk 0:00:16.4]} 68... Ke8 {[%clk 0:00:13.4]}
69. Bc6# {[%clk 0:00:16.3]} 1-0

[Event "Late-Titled-Tuesday-Blitz-September-19-2023"]
[Site "Chess.com"]
[Date "2023.09.19"]
[Round "9"]
[White "KamlaPasand"]
[Black "Tomytoteph"]
[Result "0-1"]
[WhiteElo "2457"]
[BlackElo "2583"]
[TimeControl "180+1"]
[EndTime "15:45:51 PDT"]
[Termination "Tomytoteph won by checkmate"]

1. e4 {[%clk 0:03:00.9]} 1... c5 {[%clk 0:02:58.8]} 2. Nf3 {[%clk 0:03:00.5]}
2... g6 {[%clk 0:02:58.7]} 3. d4 {[%clk 0:03:00.1]} 3... cxd4 {[%clk 0:02:58.7]}
4. Nxd4 {[%clk 0:03:01]} 4... Bg7 {[%clk 0:02:58.7]} 5. Nc3 {[%clk 0:03:01.4]}
5... Nc6 {[%clk 0:02:59]} 6. Be3 {[%clk 0:02:59.2]} 6... Nf6 {[%clk 0:02:59.3]}
7. Bc4 {[%clk 0:02:55.5]} 7... O-O {[%clk 0:02:59.3]} 8. f3 {[%clk 0:02:56.1]}
8... Qb6 {[%clk 0:02:58]} 9. Bb3 {[%clk 0:02:56.6]} 9... Nxe4 {[%clk 0:02:57.1]}
10. Nd5 {[%clk 0:02:57]} 10... Qa5+ {[%clk 0:02:53.4]} 11. c3 {[%clk 0:02:57.2]}
11... Nxd4 {[%clk 0:02:53.1]} 12. Bxd4 {[%clk 0:02:48.2]} 12... e5 {[%clk
0:02:41.7]} 13. Bxe5 {[%clk 0:02:35]} 13... Bxe5 {[%clk 0:02:39.5]} 14. Ne7+
{[%clk 0:02:29.5]} 14... Kg7 {[%clk 0:02:37]} 15. fxe4 {[%clk 0:02:27.6]} 15...
Qc5 {[%clk 0:02:28.5]} 16. Nxc8 {[%clk 0:02:26.2]} 16... Raxc8 {[%clk
0:02:28.1]} 17. Qd2 {[%clk 0:02:24.5]} 17... b5 {[%clk 0:02:23]} 18. O-O-O
{[%clk 0:02:19.8]} 18... b4 {[%clk 0:02:23]} 19. c4 {[%clk 0:02:17.1]} 19... d6
{[%clk 0:02:23.1]} 20. Kb1 {[%clk 0:02:15.4]} 20... a5 {[%clk 0:02:23]} 21. Qd5
{[%clk 0:02:11]} 21... Qa7 {[%clk 0:02:20.4]} 22. Ba4 {[%clk 0:02:08.8]} 22...
Rc5 {[%clk 0:02:19.4]} 23. Qd3 {[%clk 0:02:07.9]} 23... Rfc8 {[%clk 0:02:11.4]}
24. b3 {[%clk 0:02:06.2]} 24... Qe7 {[%clk 0:02:11.2]} 25. g3 {[%clk 0:01:56.5]}
25... Bf6 {[%clk 0:02:10.4]} 26. Rhf1 {[%clk 0:01:49.5]} 26... Rd8 {[%clk
0:02:10.1]} 27. Kc1 {[%clk 0:01:30.7]} 27... Rh5 {[%clk 0:02:07.5]} 28. h4
{[%clk 0:01:29.6]} 28... Qe5 {[%clk 0:02:07.3]} 29. Kd2 {[%clk 0:01:26.5]} 29...
Qe7 {[%clk 0:01:17.4]} 30. Rf3 {[%clk 0:01:23.4]} 30... Bc3+ {[%clk 0:01:13.6]}
31. Kc2 {[%clk 0:01:23]} 31... Re5 {[%clk 0:01:13.5]} 32. Rdf1 {[%clk 0:01:22]}
32... Rf8 {[%clk 0:01:13.3]} 33. Bc6 {[%clk 0:01:21.8]} 33... f6 {[%clk
0:01:10.3]} 34. Bd5 {[%clk 0:01:21.7]} 34... a4 {[%clk 0:01:10.1]} 35. bxa4
{[%clk 0:01:16.6]} 35... Qd7 {[%clk 0:00:30.8]} 36. Kb3 {[%clk 0:01:15.7]} 36...
Ree8 {[%clk 0:00:26.8]} 37. g4 {[%clk 0:01:02.3]} 37... Qxg4 {[%clk 0:00:24.3]}
38. Rg3 {[%clk 0:00:59.3]} 38... Qxh4 {[%clk 0:00:21.2]} 39. Rh3 {[%clk
0:00:52.3]} 39... Qg5 {[%clk 0:00:20.7]} 40. Rfh1 {[%clk 0:00:51.7]} 40... h5
{[%clk 0:00:20.9]} 41. Rg3 {[%clk 0:00:51.5]} 41... Qh6 {[%clk 0:00:18.7]} 42.
Rhg1 {[%clk 0:00:51.2]} 42... g5 {[%clk 0:00:18.9]} 43. Rh3 {[%clk 0:00:49.9]}
43... h4 {[%clk 0:00:18.5]} 44. Rg4 {[%clk 0:00:49.8]} 44... Rh8 {[%clk
0:00:16.8]} 45. Qf3 {[%clk 0:00:47.3]} 45... Qg6 {[%clk 0:00:16.7]} 46. Rg1
{[%clk 0:00:43.5]} 46... Bd4 {[%clk 0:00:15.9]} 47. Rg2 {[%clk 0:00:42.8]} 47...
Be5 {[%clk 0:00:15.4]} 48. Rg4 {[%clk 0:00:41.9]} 48... Kf8 {[%clk 0:00:15.5]}
49. Rh1 {[%clk 0:00:40.9]} 49... Ke7 {[%clk 0:00:15.9]} 50. Rb1 {[%clk
0:00:39.5]} 50... h3 {[%clk 0:00:15.8]} 51. Kc2 {[%clk 0:00:37.3]} 51... Bc3
{[%clk 0:00:15.7]} 52. Rh1 {[%clk 0:00:35.7]} 52... h2 {[%clk 0:00:16]} 53. Rg2
{[%clk 0:00:34.8]} 53... Be5 {[%clk 0:00:14.5]} 54. Re2 {[%clk 0:00:31.5]} 54...
Rh4 {[%clk 0:00:13.1]} 55. a5 {[%clk 0:00:31.3]} 55... g4 {[%clk 0:00:13.3]} 56.
Qe3 {[%clk 0:00:30.9]} 56... g3 {[%clk 0:00:13.5]} 57. Qf3 {[%clk 0:00:30.9]}
57... Rf4 {[%clk 0:00:10.8]} 58. Qg2 {[%clk 0:00:31.2]} 58... Qg4 {[%clk
0:00:10.6]} 59. a6 {[%clk 0:00:30.3]} 59... Rf3 {[%clk 0:00:10.9]} 60. a7 {[%clk
0:00:30.2]} 60... Rc3+ {[%clk 0:00:11.8]} 61. Kb1 {[%clk 0:00:30.5]} 61... Rc8
{[%clk 0:00:08.7]} 62. a8=Q {[%clk 0:00:30.4]} 62... Rxa8 {[%clk 0:00:09.2]} 63.
Bxa8 {[%clk 0:00:31.3]} 63... b3 {[%clk 0:00:10.1]} 64. axb3 {[%clk 0:00:30.6]}
64... Rxb3+ {[%clk 0:00:11]} 65. Ka2 {[%clk 0:00:31]} 65... Rb4 {[%clk
0:00:10.3]} 66. Rb1 {[%clk 0:00:30.1]} 66... Rxb1 {[%clk 0:00:08.7]} 67. Kxb1
{[%clk 0:00:29.9]} 67... Qxe2 {[%clk 0:00:09.2]} 68. Qxe2 {[%clk 0:00:29]} 68...
h1=Q+ {[%clk 0:00:09.7]} 69. Ka2 {[%clk 0:00:28.8]} 69... Qa1+ {[%clk
0:00:08.7]} 70. Kb3 {[%clk 0:00:28.6]} 70... Qb1+ {[%clk 0:00:09.3]} 71. Ka4
{[%clk 0:00:28.6]} 71... Bc3 {[%clk 0:00:09.3]} 72. Ka3 {[%clk 0:00:24.5]} 72...
Qb4+ {[%clk 0:00:08.1]} 73. Ka2 {[%clk 0:00:24.9]} 73... Bd4 {[%clk 0:00:08.4]}
74. Qd3 {[%clk 0:00:24]} 74... Qb2# {[%clk 0:00:08.1]} 0-1

[Event "Late-Titled-Tuesday-Blitz-September-19-2023"]
[Site "Chess.com"]
[Date "2023.09.19"]
[Round "9"]
[White "Mops_2004"]
[Black "dawid498"]
[Result "1/2-1/2"]
[WhiteElo "2801"]
[BlackElo "2672"]
[TimeControl "180+1"]
[EndTime "15:46:03 PDT"]
[Termination "Game drawn - insufficient material"]

1. g3 {[%clk 0:03:00.9]} 1... g6 {[%clk 0:02:57.8]} 2. Bg2 {[%clk 0:03:00.6]}
2... Bg7 {[%clk 0:02:58.1]} 3. d4 {[%clk 0:03:01.3]} 3... Nf6 {[%clk 0:02:57.9]}
4. e4 {[%clk 0:03:01.5]} 4... d6 {[%clk 0:02:54.6]} 5. Nc3 {[%clk 0:03:01.5]}
5... O-O {[%clk 0:02:50.5]} 6. Nf3 {[%clk 0:03:01.5]} 6... Nc6 {[%clk 0:02:41]}
7. d5 {[%clk 0:02:56.8]} 7... Nb8 {[%clk 0:02:35.8]} 8. O-O {[%clk 0:02:55.5]}
8... c6 {[%clk 0:02:16.7]} 9. h3 {[%clk 0:02:54.7]} 9... cxd5 {[%clk 0:02:16.3]}
10. exd5 {[%clk 0:02:54.9]} 10... Nbd7 {[%clk 0:02:09.1]} 11. Re1 {[%clk
0:02:54.1]} 11... Re8 {[%clk 0:02:09.1]} 12. a4 {[%clk 0:02:49.9]} 12... a6
{[%clk 0:01:49]} 13. Be3 {[%clk 0:02:46.4]} 13... Qc7 {[%clk 0:01:22.3]} 14. Qd2
{[%clk 0:02:42.4]} 14... Nc5 {[%clk 0:01:21.4]} 15. Bd4 {[%clk 0:02:35]} 15...
Bf5 {[%clk 0:01:13.5]} 16. Nh4 {[%clk 0:02:30.2]} 16... Bc8 {[%clk 0:00:57.3]}
17. Re3 {[%clk 0:02:25.6]} 17... e5 {[%clk 0:00:56.1]} 18. dxe6 {[%clk
0:02:23.4]} 18... Bxe6 {[%clk 0:00:53.8]} 19. Rae1 {[%clk 0:01:58.6]} 19... Rad8
{[%clk 0:00:53.2]} 20. f4 {[%clk 0:01:45.5]} 20... Qc8 {[%clk 0:00:25.4]} 21.
Kh2 {[%clk 0:01:44.8]} 21... d5 {[%clk 0:00:18.4]} 22. Qd1 {[%clk 0:01:22.6]}
22... Nce4 {[%clk 0:00:17.5]} 23. Ne2 {[%clk 0:01:05.6]} 23... Qc6 {[%clk
0:00:13.3]} 24. a5 {[%clk 0:00:58.1]} 24... Qb5 {[%clk 0:00:12.6]} 25. Bb6
{[%clk 0:00:51.9]} 25... Rc8 {[%clk 0:00:12.9]} 26. Rb3 {[%clk 0:00:47.1]} 26...
Qc4 {[%clk 0:00:13.3]} 27. Nd4 {[%clk 0:00:45.9]} 27... Nc5 {[%clk 0:00:12.3]}
28. Rc3 {[%clk 0:00:44.8]} 28... Qb4 {[%clk 0:00:12.5]} 29. f5 {[%clk
0:00:38.5]} 29... gxf5 {[%clk 0:00:10.3]} 30. Nhxf5 {[%clk 0:00:36.7]} 30...
Nce4 {[%clk 0:00:10.5]} 31. Rb3 {[%clk 0:00:30.3]} 31... Qf8 {[%clk 0:00:08.4]}
32. Rf1 {[%clk 0:00:22.9]} 32... Kh8 {[%clk 0:00:05.4]} 33. Rbf3 {[%clk
0:00:22.1]} 33... Bxf5 {[%clk 0:00:04]} 34. Nxf5 {[%clk 0:00:20.9]} 34... Nd7
{[%clk 0:00:02.2]} 35. Nxg7 {[%clk 0:00:19.6]} 35... Qxg7 {[%clk 0:00:03.1]} 36.
Bd4 {[%clk 0:00:18.3]} 36... Ne5 {[%clk 0:00:03.7]} 37. g4 {[%clk 0:00:15.3]}
37... Nxf3+ {[%clk 0:00:02.5]} 38. Rxf3 {[%clk 0:00:15]} 38... f6 {[%clk
0:00:03.1]} 39. Rf5 {[%clk 0:00:15.3]} 39... Re6 {[%clk 0:00:03.2]} 40. Rxd5
{[%clk 0:00:12.9]} 40... Rce8 {[%clk 0:00:03.4]} 41. Rf5 {[%clk 0:00:12.7]}
41... Qc7+ {[%clk 0:00:03.5]} 42. Kg1 {[%clk 0:00:12.1]} 42... Kg8 {[%clk
0:00:03.9]} 43. Rf1 {[%clk 0:00:04]} 43... Qd6 {[%clk 0:00:03]} 44. c3 {[%clk
0:00:03.7]} 44... Nc5 {[%clk 0:00:02.7]} 45. Kh1 {[%clk 0:00:03.3]} 45... Ne4
{[%clk 0:00:03.1]} 46. Kg1 {[%clk 0:00:02.1]} 46... Qg3 {[%clk 0:00:03.2]} 47.
Qf3 {[%clk 0:00:02.5]} 47... Qxf3 {[%clk 0:00:03.3]} 48. Rxf3 {[%clk 0:00:03.4]}
48... Nd2 {[%clk 0:00:03.3]} 49. Rf5 {[%clk 0:00:02.7]} 49... Nc4 {[%clk
0:00:03.6]} 50. Bd5 {[%clk 0:00:01.7]} 50... Nxb2 {[%clk 0:00:02.2]} 51. Bxe6+
{[%clk 0:00:02.6]} 51... Rxe6 {[%clk 0:00:02.3]} 52. Rxf6 {[%clk 0:00:03.5]}
52... Rxf6 {[%clk 0:00:02.7]} 53. Bxf6 {[%clk 0:00:03.8]} 53... Nc4 {[%clk
0:00:03.6]} 54. Kf2 {[%clk 0:00:03.7]} 54... Nxa5 {[%clk 0:00:04]} 55. Ke3
{[%clk 0:00:04.6]} 55... Nc6 {[%clk 0:00:04.6]} 56. Ke4 {[%clk 0:00:04.4]} 56...
Kf7 {[%clk 0:00:05.5]} 57. g5 {[%clk 0:00:04.5]} 57... Ke6 {[%clk 0:00:05.9]}
58. h4 {[%clk 0:00:05]} 58... a5 {[%clk 0:00:06.2]} 59. h5 {[%clk 0:00:05.5]}
59... Kf7 {[%clk 0:00:04.2]} 60. c4 {[%clk 0:00:05.4]} 60... a4 {[%clk
0:00:04.5]} 61. Bc3 {[%clk 0:00:05.4]} 61... a3 {[%clk 0:00:02.1]} 62. Kd5
{[%clk 0:00:05]} 62... a2 {[%clk 0:00:02.1]} 63. Kc5 {[%clk 0:00:05.2]} 63...
Nd8 {[%clk 0:00:01.5]} 64. Kb6 {[%clk 0:00:05]} 64... Ne6 {[%clk 0:00:01.7]} 65.
g6+ {[%clk 0:00:04.7]} 65... hxg6 {[%clk 0:00:02.6]} 66. hxg6+ {[%clk
0:00:02.9]} 66... Kxg6 {[%clk 0:00:03.5]} 67. Kxb7 {[%clk 0:00:02.7]} 67... Kf5
{[%clk 0:00:03.5]} 68. Kc6 {[%clk 0:00:03.5]} 68... Ke4 {[%clk 0:00:03.4]} 69.
Kd6 {[%clk 0:00:04.2]} 69... Kd3 {[%clk 0:00:03.8]} 70. Ba1 {[%clk 0:00:02.5]}
70... Nd4 {[%clk 0:00:02.8]} 71. c5 {[%clk 0:00:02.9]} 71... Kc4 {[%clk
0:00:02.3]} 72. c6 {[%clk 0:00:01.9]} 72... Nxc6 {[%clk 0:00:02.2]} 73. Kxc6
{[%clk 0:00:02.8]} 73... Kb3 {[%clk 0:00:02.7]} 74. Bh8 {[%clk 0:00:03.4]} 74...
Kc2 {[%clk 0:00:03.6]} 75. Kd5 {[%clk 0:00:03.6]} 75... Kb1 {[%clk 0:00:04.5]}
76. Kc5 {[%clk 0:00:03.3]} 76... a1=Q {[%clk 0:00:05.4]} 77. Bxa1 {[%clk
0:00:02.8]} 1/2-1/2

[Event "Late-Titled-Tuesday-Blitz-September-19-2023"]
[Site "Chess.com"]
[Date "2023.09.19"]
[Round "9"]
[White "Orest_Vovk"]
[Black "lamomiajunior"]
[Result "1/2-1/2"]
[WhiteElo "2562"]
[BlackElo "2648"]
[TimeControl "180+1"]
[EndTime "15:46:23 PDT"]
[Termination "Game drawn by repetition"]

1. e4 {[%clk 0:02:44.7]} 1... c6 {[%clk 0:03:00.4]} 2. Nc3 {[%clk 0:02:44]} 2...
d5 {[%clk 0:03:01.3]} 3. Qe2 {[%clk 0:02:43.1]} 3... dxe4 {[%clk 0:02:58.6]} 4.
Nxe4 {[%clk 0:02:42.7]} 4... Bf5 {[%clk 0:02:57.5]} 5. Nf3 {[%clk 0:02:41.4]}
5... e6 {[%clk 0:02:52.2]} 6. d4 {[%clk 0:02:40.2]} 6... Be7 {[%clk 0:02:48.6]}
7. g3 {[%clk 0:02:37.2]} 7... Nf6 {[%clk 0:02:46.4]} 8. Nxf6+ {[%clk 0:02:33.9]}
8... Bxf6 {[%clk 0:02:47.3]} 9. c3 {[%clk 0:02:32.8]} 9... O-O {[%clk
0:02:46.8]} 10. Bg2 {[%clk 0:02:32.9]} 10... Nd7 {[%clk 0:02:38.4]} 11. O-O
{[%clk 0:02:32.5]} 11... Re8 {[%clk 0:02:35.8]} 12. Ne5 {[%clk 0:02:32.2]} 12...
Nxe5 {[%clk 0:02:11.9]} 13. dxe5 {[%clk 0:02:31.8]} 13... Bd3 {[%clk 0:02:08]}
14. Qg4 {[%clk 0:02:24.2]} 14... Bxe5 {[%clk 0:02:03.4]} 15. Rd1 {[%clk
0:02:22.4]} 15... Bf5 {[%clk 0:02:00.4]} 16. Rxd8 {[%clk 0:02:05.8]} 16... Bxg4
{[%clk 0:02:00.2]} 17. Rxe8+ {[%clk 0:02:05.4]} 17... Rxe8 {[%clk 0:02:00.4]}
18. Be3 {[%clk 0:02:06.3]} 18... a6 {[%clk 0:01:55.9]} 19. h3 {[%clk 0:02:06.4]}
19... Be2 {[%clk 0:01:46.9]} 20. Re1 {[%clk 0:02:00.9]} 20... Bc4 {[%clk
0:01:47.1]} 21. b3 {[%clk 0:01:45.6]} 21... Bd5 {[%clk 0:01:46.3]} 22. c4 {[%clk
0:01:41.5]} 22... Bxg2 {[%clk 0:01:43.2]} 23. Kxg2 {[%clk 0:01:42.4]} 23... Bf6
{[%clk 0:01:35]} 24. Bb6 {[%clk 0:01:40.6]} 24... g5 {[%clk 0:01:14.6]} 25. Rd1
{[%clk 0:01:36.4]} 25... Kg7 {[%clk 0:01:15]} 26. Rd7 {[%clk 0:01:35.9]} 26...
Re7 {[%clk 0:01:15.6]} 27. Rd8 {[%clk 0:01:31.7]} 27... h5 {[%clk 0:01:05.6]}
28. g4 {[%clk 0:01:25.7]} 28... hxg4 {[%clk 0:01:00.2]} 29. hxg4 {[%clk
0:01:26.6]} 29... e5 {[%clk 0:00:36.5]} 30. Kf3 {[%clk 0:01:13.7]} 30... e4+
{[%clk 0:00:36.4]} 31. Ke3 {[%clk 0:01:10.5]} 31... Be5 {[%clk 0:00:21.6]} 32.
Bd4 {[%clk 0:00:49.1]} 32... Kf6 {[%clk 0:00:20.7]} 33. Rd6+ {[%clk 0:00:38.1]}
33... Kg7 {[%clk 0:00:15.6]} 34. c5 {[%clk 0:00:18.9]} 34... Kg8 {[%clk
0:00:06]} 35. Bxe5 {[%clk 0:00:15.3]} 35... Rxe5 {[%clk 0:00:06.9]} 36. b4
{[%clk 0:00:14.7]} 36... a5 {[%clk 0:00:02.4]} 37. a3 {[%clk 0:00:14.1]} 37...
axb4 {[%clk 0:00:03]} 38. axb4 {[%clk 0:00:15]} 38... Re7 {[%clk 0:00:03.8]} 39.
Rd4 {[%clk 0:00:13.9]} 39... Kg7 {[%clk 0:00:04.4]} 40. Rxe4 {[%clk 0:00:13.8]}
40... Rd7 {[%clk 0:00:05]} 41. Re5 {[%clk 0:00:11.9]} 41... Kg6 {[%clk
0:00:04.6]} 42. Re8 {[%clk 0:00:11.5]} 42... b6 {[%clk 0:00:02.3]} 43. Rc8
{[%clk 0:00:09.6]} 43... bxc5 {[%clk 0:00:02.6]} 44. Rxc6+ {[%clk 0:00:09.7]}
44... f6 {[%clk 0:00:03.3]} 45. bxc5 {[%clk 0:00:08.9]} 45... Rd1 {[%clk
0:00:03.2]} 46. Rc8 {[%clk 0:00:06.6]} 46... Rc1 {[%clk 0:00:03.7]} 47. c6
{[%clk 0:00:06.9]} 47... Kg7 {[%clk 0:00:02.5]} 48. c7 {[%clk 0:00:07.1]} 48...
Re1+ {[%clk 0:00:02.1]} 49. Kd4 {[%clk 0:00:07.2]} 49... Rd1+ {[%clk 0:00:02]}
50. Ke4 {[%clk 0:00:05.4]} 50... Rc1 {[%clk 0:00:02.5]} 51. Kd5 {[%clk 0:00:05]}
51... Rd1+ {[%clk 0:00:02.5]} 52. Ke6 {[%clk 0:00:05.2]} 52... Re1+ {[%clk
0:00:02.6]} 53. Kd7 {[%clk 0:00:04.8]} 53... Rd1+ {[%clk 0:00:03.4]} 54. Kc6
{[%clk 0:00:05]} 54... Rc1+ {[%clk 0:00:04.1]} 55. Kd5 {[%clk 0:00:05.2]} 55...
Rd1+ {[%clk 0:00:04.4]} 56. Ke4 {[%clk 0:00:05.4]} 56... Rc1 {[%clk 0:00:05.1]}
57. Kf3 {[%clk 0:00:03.2]} 57... Rc4 {[%clk 0:00:05.1]} 58. Ke3 {[%clk
0:00:02.9]} 58... Rc1 {[%clk 0:00:04.8]} 59. f4 {[%clk 0:00:03]} 59... gxf4+
{[%clk 0:00:03.7]} 60. Kxf4 {[%clk 0:00:03.9]} 60... Rc4+ {[%clk 0:00:04.2]} 61.
Kf5 {[%clk 0:00:03.9]} 61... Rc5+ {[%clk 0:00:04.7]} 62. Ke6 {[%clk 0:00:04.1]}
62... Rc1 {[%clk 0:00:05.1]} 63. Kd6 {[%clk 0:00:02.4]} 63... Rd1+ {[%clk
0:00:05.2]} 64. Ke6 {[%clk 0:00:03.1]} 64... Re1+ {[%clk 0:00:05.5]} 65. Kf5
{[%clk 0:00:03.6]} 65... Rc1 {[%clk 0:00:06.1]} 66. Kf4 {[%clk 0:00:04]} 66...
Rc5 {[%clk 0:00:06.2]} 67. Ke3 {[%clk 0:00:04.4]} 67... Rc1 {[%clk 0:00:06.3]}
68. Kd4 {[%clk 0:00:04.8]} 68... Rd1+ {[%clk 0:00:06.6]} 69. Kc5 {[%clk
0:00:04.9]} 69... Rc1+ {[%clk 0:00:07.2]} 70. Kb6 {[%clk 0:00:05.2]} 70... Rb1+
{[%clk 0:00:07.8]} 71. Ka6 {[%clk 0:00:05.4]} 71... Ra1+ {[%clk 0:00:08.2]} 72.
Kb5 {[%clk 0:00:05.4]} 72... Rb1+ {[%clk 0:00:08.5]} 73. Kc4 {[%clk 0:00:05.5]}
73... Rc1+ {[%clk 0:00:09]} 74. Kd3 {[%clk 0:00:05.7]} 74... Rc6 {[%clk
0:00:08.1]} 75. Kd2 {[%clk 0:00:06]} 75... Rc5 {[%clk 0:00:08]} 76. Ke3 {[%clk
0:00:05.9]} 76... Rc6 {[%clk 0:00:08.3]} 77. Kf3 {[%clk 0:00:06.1]} 77... Rc3+
{[%clk 0:00:08.3]} 78. Ke4 {[%clk 0:00:06.3]} 78... Rc1 {[%clk 0:00:08.8]} 79.
Kf5 {[%clk 0:00:06]} 79... Rf1+ {[%clk 0:00:07.9]} 80. Ke6 {[%clk 0:00:06]}
80... Re1+ {[%clk 0:00:08.5]} 81. Kd5 {[%clk 0:00:06.1]} 81... Rd1+ {[%clk
0:00:09.1]} 82. Kc6 {[%clk 0:00:05.2]} 82... Rc1+ {[%clk 0:00:09.7]} 83. Kd7
{[%clk 0:00:05.3]} 83... Rd1+ {[%clk 0:00:10.2]} 84. Ke6 {[%clk 0:00:05.4]}
84... Re1+ {[%clk 0:00:10.6]} 1/2-1/2

[Event "Late-Titled-Tuesday-Blitz-September-19-2023"]
[Site "Chess.com"]
[Date "2023.09.19"]
[Round "10"]
[White "UK_23"]
[Black "miraitrunks"]
[Result "1-0"]
[WhiteElo "2395"]
[BlackElo "2149"]
[TimeControl "180+1"]
[EndTime "15:50:59 PDT"]
[Termination "UK_23 won by resignation"]

1. e4 {[%clk 0:03:00.9]} 1... e6 {[%clk 0:03:00.5]} 2. d4 {[%clk 0:03:00.5]}
2... d5 {[%clk 0:03:01.4]} 3. e5 {[%clk 0:03:01.2]} 3... Qd7 {[%clk 0:03:01.4]}
4. Nf3 {[%clk 0:03:00.2]} 4... b6 {[%clk 0:03:01.4]} 5. a4 {[%clk 0:02:58.6]}
5... Ba6 {[%clk 0:03:01.3]} 6. Bxa6 {[%clk 0:02:54.9]} 6... Nxa6 {[%clk
0:03:02]} 7. c3 {[%clk 0:02:54.8]} 7... c5 {[%clk 0:03:01.8]} 8. Qe2 {[%clk
0:02:52.8]} 8... Nb8 {[%clk 0:02:57]} 9. a5 {[%clk 0:02:53.3]} 9... b5 {[%clk
0:02:54]} 10. dxc5 {[%clk 0:02:51.7]} 10... Bxc5 {[%clk 0:02:54.6]} 11. b4
{[%clk 0:02:50.7]} 11... Be7 {[%clk 0:02:50]} 12. a6 {[%clk 0:02:47.2]} 12...
Qc6 {[%clk 0:02:43.1]} 13. Nd4 {[%clk 0:02:43.5]} 13... Qb6 {[%clk 0:02:37.7]}
14. Qxb5+ {[%clk 0:02:42.4]} 14... Nd7 {[%clk 0:02:34.9]} 15. Be3 {[%clk
0:02:27.3]} 15... Rc8 {[%clk 0:02:25.4]} 16. Qxb6 {[%clk 0:02:21.9]} 16... Nxb6
{[%clk 0:02:26]} 17. Nb5 {[%clk 0:02:16.7]} 17... Nc4 {[%clk 0:02:20.7]} 18.
Nxa7 {[%clk 0:02:11.6]} 18... Ra8 {[%clk 0:02:19.7]} 19. Nb5 {[%clk 0:02:07.8]}
19... Nxe3 {[%clk 0:02:18.7]} 20. fxe3 {[%clk 0:02:05.8]} 20... Bg5 {[%clk
0:02:19.4]} 21. Nc7+ {[%clk 0:02:05]} 1-0